fUSD/lending_fUSD_20250124
["ID","MTS","AMOUNT","RATE_DAILY","PERIOD"]
[350191431,1737679849758,-500.0,0.00017805,2]
[350191432,1737679849767,-500.0,0.00017805,2]
[350191433,1737679849777,-691.5,0.00017805,2]
[350191434,1737679849786,-1295.08,0.00017805,2]
[350191435,1737679849795,-500.0,0.00017805,2]
[350191436,1737679849803,-500.0,0.00017805,2]
[350191437,1737679849813,-500.0,0.00017805,2]
[350191438,1737679849822,-573.22,0.00017805,2]
[350191439,1737679849831,-500.0,0.00017805,2]
[350191440,1737679849843,-500.0,0.00017805,2]
[350191441,1737679849852,-500.0,0.00017805,2]
[350191442,1737679849861,-500.0,0.00017805,2]
[350191443,1737679849871,-524.76,0.00017805,2]
[350191444,1737679849879,-1761.91642975,0.00017934,2]
[350191445,1737679849892,-109.76171782,0.00017934,2]
[350191446,1737679849901,-2888.83216293,0.00018001,2]
[350191447,1737679849911,-1717.07124933,0.0001805,2]
[350191448,1737679849919,-500.0,0.00018078,2]
[350191449,1737679849928,-635.75,0.00018078,2]
[350191450,1737679849940,-567.37,0.00018078,2]
[350191451,1737679849953,-755.96,0.00018078,2]
[350191452,1737679849965,-500.0,0.00018078,2]
[350191453,1737679849977,-500.0,0.00018078,2]
[350191454,1737679849988,-552.82,0.00018078,2]
[350191455,1737679850002,-573.8,0.00018078,2]
[350191456,1737679850017,-1097.53,0.00018078,2]
[350191457,1737679850029,-500.0,0.00018078,2]
[350191458,1737679850043,-274.5609798,0.00018078,2]
[350191460,1737679850054,-707.23,0.00018078,2]
[350191461,1737679850067,-500.0,0.00018078,2]
[350191462,1737679850078,-500.0,0.00018078,2]
[350191463,1737679850091,-500.0,0.00018078,2]
[350191464,1737679850103,-500.0,0.00018078,2]
[350191465,1737679850113,-500.0,0.00018078,2]
[350191466,1737679850126,-500.0,0.00018078,2]
[350191467,1737679850138,-762.06,0.00018078,2]
[350191468,1737679850150,-524.72,0.00018078,2]
[350191469,1737679850162,-500.0,0.00018078,2]
[350191470,1737679850173,-500.0,0.00018078,2]
[350191471,1737679850185,-500.0,0.00018078,2]
[350191472,1737679850198,-500.0,0.00018078,2]
[350191473,1737679850210,-674.9,0.00018078,2]
[350191474,1737679850223,-711.03,0.00018078,2]
[350191475,1737679850235,-500.0,0.00018078,2]
[350191476,1737679850247,-51.13967772,0.00018078,2]
[350191477,1737679850263,-448.86032228,0.00018078,2]
[350191478,1737679850275,-500.0,0.00018078,2]
[350191479,1737679850286,-500.0,0.00018078,2]
[350191480,1737679850299,-1332.35,0.00018078,2]
[350191481,1737679850312,-679.57,0.00018078,2]
[350191482,1737679850323,-977.63,0.00018078,2]
[350191483,1737679850339,-695.71,0.00018078,2]
[350191484,1737679850358,-500.0,0.00018078,2]
[350191485,1737679850370,-506.8,0.00018078,2]
[350191486,1737679850382,-588.54,0.00018078,2]
[350191487,1737679850394,-500.0,0.00018078,2]
[350191488,1737679850404,-595.9017697,0.00018078,2]
[350191489,1737679850415,-500.0,0.00018078,2]
[350191490,1737679850427,-500.0,0.00018078,2]
[350191491,1737679850439,-1371.01,0.00018078,2]
[350191492,1737679850452,-500.0,0.00018078,2]
[350191493,1737679850466,-522.63,0.00018078,2]
[350191494,1737679850477,-500.0,0.00018078,2]
[350191495,1737679850488,-191.200697,0.00018078,2]
[350191496,1737679850499,-500.0,0.00018078,2]
[350191497,1737679850510,-500.0,0.00018078,2]
[350191498,1737679850522,-500.0,0.00018078,2]
[350191499,1737679850535,-717.12,0.00018078,2]
[350191500,1737679850547,-500.0,0.00018078,2]
[350191501,1737679850558,-500.0,0.00018078,2]
[350191502,1737679850569,-500.0,0.00018078,2]
[350191503,1737679850579,-500.0,0.00018079,2]
[350191504,1737679850590,-281.30649137,0.00018079,2]
[350191505,1737679850602,-500.0,0.00018079,2]
[350191506,1737679850614,-500.0,0.00018079,2]
[350191507,1737679850626,-500.0,0.00018079,2]
[350191508,1737679850636,-500.0,0.00018079,2]
[350191509,1737679850647,-500.0,0.00018079,2]
[350191510,1737679850658,-500.0,0.00018079,2]
[350191511,1737679850669,-500.0,0.00018079,2]
[350191512,1737679850680,-691.5,0.00018079,2]
[350191513,1737679850692,-1295.08,0.00018079,2]
[350191514,1737679850707,-500.0,0.00018079,2]
[350191515,1737679850718,-500.0,0.00018079,2]
[350191516,1737679850729,-500.0,0.00018079,2]
[350191517,1737679850742,-573.22,0.00018079,2]
[350191518,1737679850753,-500.0,0.00018079,2]
[350191519,1737679850765,-500.0,0.00018079,2]
[350191520,1737679850776,-500.0,0.00018079,2]
[350191521,1737679850787,-500.0,0.00018079,2]
[350191522,1737679850799,-524.76,0.00018079,2]
[350191523,1737679850810,-907.59122542,0.00018082,2]
[350191524,1737679850829,-6.20877458,0.00018082,2]
[350191525,1737679850841,-1871.67814757,0.00018107,2]
[350191526,1737679850852,-909.378,0.0001811,2]
[350191527,1737679850863,-421.29786233,0.00018149,2]
[350191528,1737679850874,-1270.0,0.00018253,2]
[350191529,1737679850885,-2019.0,0.00018253,2]
[350191530,1737679850896,-636.0,0.00018253,2]
[350191531,1737679850907,-567.0,0.00018253,2]
[350191532,1737679850919,-150.0,0.00018253,2]
[350191533,1737679850930,-1864.0,0.00018253,2]
[350191534,1737679850940,-1261.0,0.00018253,2]
[350191535,1737679850952,-908.0,0.00018253,2]
[350191536,1737679850962,-781.0,0.00018253,2]
[350191537,1737679850974,-2948.0,0.00018253,2]
[350191538,1737679850985,-150.0,0.00018253,2]
[350191539,1737679850997,-538.0,0.00018253,2]
[350191540,1737679851009,-3985.0,0.00018253,2]
[350191541,1737679851020,-150.0,0.00018253,2]
[350191542,1737679851033,-150.0,0.00018253,2]
[350191543,1737679851044,-3903.0,0.00018253,2]
[350191544,1737679851056,-420.0,0.00018255,2]
[350191545,1737679851067,-177.48793252,0.00018279,2]
[350191546,1737679851431,-2878.493,0.00016882,2]
[350191547,1737679851440,-500.0,0.00016982,2]
[350191548,1737679851450,-500.0,0.00016982,2]
[350191549,1737679851460,-500.0,0.00016982,2]
[350191550,1737679851470,-500.0,0.00016982,2]
[350191551,1737679851480,-391.31744309,0.00016982,2]
[350191552,1737679851489,-500.0,0.00016982,2]
[350191553,1737679851499,-571.64308789,0.00017256,2]
[350191554,1737679851508,-500.0,0.00017256,2]
[350191555,1737679851517,-500.0,0.00017256,2]
[350191556,1737679851527,-500.0,0.00017256,2]
[350191557,1737679851536,-586.74,0.00017256,2]
[350191558,1737679851546,-206.8959305,0.0001753,2]
[350191559,1737679851556,-500.0,0.0001753,2]
[350191560,1737679851566,-1694.19021505,0.00018279,2]
[350191561,1737679851576,-2888.83216293,0.00018281,2]
[350191562,1737679851589,-5512.21936872,0.0001833,2]
[350191563,1737679851598,-500.0,0.00018352,2]
[350191564,1737679851607,-635.75,0.00018352,2]
[350191565,1737679851850,-755.96,0.00018352,2]
[350191566,1737679851867,-500.0,0.00018352,2]
[350191567,1737679851879,-500.0,0.00018352,2]
[350191568,1737679851889,-552.82,0.00018352,2]
[350191569,1737679851899,-573.8,0.00018352,2]
[350191570,1737679851908,-1097.53,0.00018352,2]
[350191571,1737679851918,-500.0,0.00018352,2]
[350191572,1737679851928,-707.23,0.00018352,2]
[350191573,1737679851938,-500.0,0.00018352,2]
[350191574,1737679851948,-500.0,0.00018352,2]
[350191575,1737679851958,-500.0,0.00018352,2]
[350191576,1737679851968,-500.0,0.00018352,2]
[350191577,1737679851977,-171.47941973,0.00018352,2]
[350191578,1737679851987,-500.0,0.00018352,2]
[350191579,1737679851996,-762.06,0.00018352,2]
[350191580,1737679852006,-524.72,0.00018352,2]
[350191581,1737679852016,-500.0,0.00018352,2]
[350191582,1737679852025,-500.0,0.00018352,2]
[350191583,1737679852034,-500.0,0.00018352,2]
[350191584,1737679852044,-183.34191825,0.00018352,2]
[350191585,1737679852053,-674.9,0.00018352,2]
[350191586,1737679852062,-711.03,0.00018352,2]
[350191587,1737679852071,-500.0,0.00018352,2]
[350191588,1737679852080,-500.0,0.00018352,2]
[350191589,1737679852091,-500.0,0.00018352,2]
[350191590,1737679852100,-500.0,0.00018352,2]
[350191591,1737679852109,-1332.35,0.00018352,2]
[350191592,1737679852119,-679.57,0.00018352,2]
[350191593,1737679852127,-977.63,0.00018352,2]
[350191594,1737679852137,-695.71,0.00018352,2]
[350191595,1737679852146,-500.0,0.00018352,2]
[350191596,1737679852155,-506.8,0.00018352,2]
[350191597,1737679852164,-588.54,0.00018352,2]
[350191598,1737679852173,-500.0,0.00018352,2]
[350191599,1737679852183,-500.0,0.00018352,2]
[350191600,1737679852192,-500.0,0.00018352,2]
[350191601,1737679852202,-1371.01,0.00018352,2]
[350191602,1737679852211,-500.0,0.00018352,2]
[350191603,1737679852220,-522.63,0.00018352,2]
[350191604,1737679852229,-500.0,0.00018352,2]
[350191605,1737679852239,-191.200697,0.00018352,2]
[350191606,1737679852248,-500.0,0.00018352,2]
[350191607,1737679852258,-500.0,0.00018352,2]
[350191608,1737679852267,-500.0,0.00018352,2]
[350191609,1737679852277,-717.12,0.00018352,2]
[350191610,1737679852287,-500.0,0.00018352,2]
[350191611,1737679852296,-500.0,0.00018352,2]
[350191612,1737679852305,-500.0,0.00018352,2]
[350191613,1737679852314,-500.0,0.00018353,2]
[350191614,1737679852323,-500.0,0.00018353,2]
[350191615,1737679852333,-500.0,0.00018353,2]
[350191616,1737679852345,-500.0,0.00018353,2]
[350191617,1737679852354,-500.0,0.00018353,2]
[350191618,1737679852363,-500.0,0.00018353,2]
[350191619,1737679852372,-500.0,0.00018353,2]
[350191620,1737679852382,-500.0,0.00018353,2]
[350191621,1737679852391,-691.5,0.00018353,2]
[350191622,1737679852400,-1295.08,0.00018353,2]
[350191623,1737679852410,-500.0,0.00018353,2]
[350191624,1737679852419,-500.0,0.00018353,2]
[350191625,1737679852428,-500.0,0.00018353,2]
[350191626,1737679852438,-573.22,0.00018353,2]
[350191627,1737679852447,-500.0,0.00018353,2]
[350191628,1737679852457,-500.0,0.00018353,2]
[350191629,1737679852466,-500.0,0.00018353,2]
[350191630,1737679852475,-500.0,0.00018353,2]
[350191631,1737679852484,-524.76,0.00018353,2]
[350191632,1737679852494,-150.0,0.00018399,2]
[350191633,1737679852504,-366.0,0.000184,2]
[350191634,1737679852513,-352.0,0.000184,2]
[350191635,1737679852523,-231.0,0.000184,2]
[350191636,1737679852532,-150.0,0.00018403,2]
[350191637,1737679852542,-150.0,0.00018404,2]
[350191638,1737679852551,-150.0,0.00018407,2]
[350191639,1737679852561,-150.0,0.0001841,2]
[350191640,1737679852570,-150.0,0.00018412,2]
[350191641,1737679852580,-320.87,0.0001842,2]
[350191642,1737679852591,-150.0,0.00018421,2]
[350191643,1737679852600,-150.0,0.00018425,2]
[350191644,1737679852609,-1000.0,0.00018428,2]
[350191645,1737679852619,-150.0,0.00018431,2]
[350191646,1737679852628,-150.0,0.00018436,2]
[350191647,1737679852637,-150.0,0.00018437,2]
[350191648,1737679852647,-150.0,0.00018437,2]
[350191649,1737679852656,-150.0,0.00018437,2]
[350191650,1737679852666,-150.0,0.00018444,2]
[350191651,1737679852676,-150.0,0.00018446,2]
[350191652,1737679852685,-150.0,0.00018448,2]
[350191653,1737679852696,-500.0,0.0001845,2]
[350191654,1737679852707,-1871.67814757,0.00018452,2]
[350191655,1737679852716,-150.0,0.00018452,2]
[350191656,1737679852725,-150.0,0.00018454,2]
[350191657,1737679852736,-150.0,0.00018455,2]
[350191658,1737679852745,-150.0,0.00018462,2]
[350191659,1737679852755,-150.0,0.00018462,2]
[350191660,1737679852772,-150.0,0.00018465,2]
[350191661,1737679852783,-150.0,0.00018466,2]
[350191662,1737679852792,-150.0,0.00018468,2]
[350191663,1737679852802,-150.0,0.0001847,2]
[350191664,1737679852811,-150.0,0.00018476,2]
[350191665,1737679852820,-150.0,0.00018477,2]
[350191666,1737679852829,-150.0,0.00018478,2]
[350191667,1737679852840,-150.0,0.00018482,2]
[350191668,1737679852849,-150.0,0.0001849,2]
[350191669,1737679852858,-150.0,0.00018493,2]
[350191670,1737679852868,-150.0,0.00018498,2]
[350191671,1737679852879,-2000.0,0.000185,2]
[350191672,1737679852888,-150.0,0.00018501,2]
[350191673,1737679852897,-150.0,0.00018506,2]
[350191674,1737679852906,-150.0,0.00018507,2]
[350191675,1737679852916,-500.0,0.00018507,2]
[350191676,1737679852926,-500.0,0.00018507,2]
[350191677,1737679852935,-500.0,0.00018507,2]
[350191678,1737679852944,-500.0,0.00018507,2]
[350191679,1737679852953,-500.0,0.00018507,2]
[350191680,1737679852963,-500.0,0.00018507,2]
[350191681,1737679852972,-500.0,0.00018507,2]
[350191682,1737679852981,-500.0,0.00018507,2]
[350191683,1737679852991,-500.0,0.00018507,2]
[350191684,1737679853001,-500.0,0.00018507,2]
[350191685,1737679853012,-500.0,0.00018507,2]
[350191686,1737679853022,-500.0,0.00018507,2]
[350191687,1737679853031,-500.0,0.00018507,2]
[350191688,1737679853040,-500.0,0.00018507,2]
[350191689,1737679853051,-500.0,0.00018507,2]
[350191690,1737679853060,-500.0,0.00018507,2]
[350191691,1737679853069,-500.0,0.00018507,2]
[350191692,1737679853079,-500.0,0.00018507,2]
[350191693,1737679853090,-500.0,0.00018507,2]
[350191694,1737679853099,-500.0,0.00018507,2]
[350191695,1737679853108,-500.0,0.00018507,2]
[350191696,1737679853118,-500.0,0.00018507,2]
[350191697,1737679853127,-500.0,0.00018507,2]
[350191698,1737679853136,-500.0,0.00018507,2]
[350191699,1737679853145,-500.0,0.00018507,2]
[350191700,1737679853154,-500.0,0.00018507,2]
[350191701,1737679853164,-500.0,0.00018507,2]
[350191702,1737679853173,-500.0,0.00018507,2]
[350191703,1737679853182,-500.0,0.00018507,2]
[350191704,1737679853191,-500.0,0.00018507,2]
[350191705,1737679853201,-500.0,0.00018507,2]
[350191706,1737679853211,-500.0,0.00018507,2]
[350191707,1737679853221,-500.0,0.00018507,2]
[350191708,1737679853230,-500.0,0.00018507,2]
[350191709,1737679853239,-500.0,0.00018507,2]
[350191710,1737679853248,-500.0,0.00018507,2]
[350191711,1737679853257,-396.17906727,0.00018507,2]
[350191712,1737679853274,-103.82093273,0.00018507,2]
[350191713,1737679853284,-500.0,0.00018507,2]
[350191714,1737679853293,-500.0,0.00018507,2]
[350191715,1737679853302,-500.0,0.00018507,2]
[350191716,1737679853311,-473.47575705,0.00018507,2]
[350191717,1737679853322,-26.52424295,0.00018507,2]
[350191718,1737679853332,-500.0,0.00018507,2]
[350191719,1737679853344,-500.0,0.00018507,2]
[350191720,1737679853353,-500.0,0.00018507,2]
[350191721,1737679853362,-500.0,0.00018507,2]
[350191722,1737679853371,-500.0,0.00018507,2]
[350191723,1737679853380,-500.0,0.00018507,2]
[350191724,1737679853389,-500.0,0.00018507,2]
[350191725,1737679853398,-500.0,0.00018507,2]
[350191726,1737679853407,-500.0,0.00018507,2]
[350191727,1737679853416,-500.0,0.00018507,2]
[350191728,1737679853425,-500.0,0.00018507,2]
[350191729,1737679853434,-500.0,0.00018507,2]
[350191730,1737679853443,-500.0,0.00018507,2]
[350191731,1737679853452,-500.0,0.00018507,2]
[350191732,1737679853462,-500.0,0.00018507,2]
[350191733,1737679853472,-500.0,0.00018507,2]
[350191734,1737679853482,-500.0,0.00018507,2]
[350191735,1737679853492,-500.0,0.00018507,2]
[350191736,1737679853501,-500.0,0.00018507,2]
[350191737,1737679853510,-500.0,0.00018507,2]
[350191738,1737679853520,-500.0,0.00018507,2]
[350191739,1737679853529,-500.0,0.00018507,2]
[350191740,1737679853539,-500.0,0.00018507,2]
[350191741,1737679853549,-500.0,0.00018507,2]
[350191742,1737679853559,-500.0,0.00018507,2]
[350191743,1737679853568,-500.0,0.00018507,2]
[350191744,1737679853578,-500.0,0.00018507,2]
[350191745,1737679853587,-500.0,0.00018507,2]
[350191746,1737679853596,-500.0,0.00018507,2]
[350191747,1737679853606,-500.0,0.00018507,2]
[350191748,1737679853615,-500.0,0.00018507,2]
[350191749,1737679853624,-500.0,0.00018507,2]
[350191750,1737679853633,-500.0,0.00018507,2]
[350191751,1737679853643,-500.0,0.00018507,2]
[350191752,1737679853652,-500.0,0.00018507,2]
[350191753,1737679853661,-500.0,0.00018507,2]
[350191754,1737679853671,-500.0,0.00018507,2]
[350191755,1737679853680,-500.0,0.00018507,2]
[350191756,1737679853690,-500.0,0.00018507,2]
[350191757,1737679853702,-500.0,0.00018507,2]
[350191758,1737679853711,-500.0,0.00018507,2]
[350191759,1737679853720,-500.0,0.00018507,2]
[350191760,1737679853730,-596.0,0.00018507,2]
[350191761,1737679853741,-500.0,0.00018507,2]
[350191762,1737679853750,-500.0,0.00018507,2]
[350191763,1737679853759,-500.0,0.00018507,2]
[350191764,1737679853769,-500.0,0.00018507,2]
[350191765,1737679853779,-500.0,0.00018507,2]
[350191766,1737679853788,-500.0,0.00018507,2]
[350191767,1737679853797,-500.0,0.00018507,2]
[350191768,1737679853806,-500.0,0.00018507,2]
[350191769,1737679853815,-500.0,0.00018507,2]
[350191770,1737679853824,-500.0,0.00018507,2]
[350191771,1737679853833,-500.0,0.00018507,2]
[350191772,1737679853843,-500.0,0.00018507,2]
[350191773,1737679853852,-500.0,0.00018507,2]
[350191774,1737679853861,-500.0,0.00018507,2]
[350191775,1737679853872,-500.0,0.00018507,2]
[350191776,1737679853881,-500.0,0.00018507,2]
[350191777,1737679853890,-500.0,0.00018507,2]
[350191778,1737679853899,-500.0,0.00018507,2]
[350191779,1737679853908,-500.0,0.00018507,2]
[350191780,1737679853917,-500.0,0.00018507,2]
[350191781,1737679853926,-500.0,0.00018507,2]
[350191782,1737679853935,-500.0,0.00018507,2]
[350191783,1737679853944,-500.0,0.00018507,2]
[350191784,1737679853954,-500.0,0.00018507,2]
[350191785,1737679853965,-500.0,0.00018507,2]
[350191786,1737679853974,-500.0,0.00018507,2]
[350191787,1737679853983,-500.0,0.00018507,2]
[350191788,1737679853992,-500.0,0.00018507,2]
[350191789,1737679854001,-500.0,0.00018507,2]
[350191790,1737679854010,-500.0,0.00018507,2]
[350191791,1737679854019,-500.0,0.00018507,2]
[350191792,1737679854027,-500.0,0.00018507,2]
[350191793,1737679854037,-500.0,0.00018507,2]
[350191794,1737679854045,-500.0,0.00018507,2]
[350191795,1737679854054,-500.0,0.00018507,2]
[350191796,1737679854063,-500.0,0.00018507,2]
[350191797,1737679854072,-500.0,0.00018507,2]
[350191798,1737679854081,-500.0,0.00018507,2]
[350191799,1737679854091,-500.0,0.00018507,2]
[350191800,1737679854100,-500.0,0.00018507,2]
[350191801,1737679854109,-240.02043899,0.00018507,2]
[350191802,1737679854121,-259.97956101,0.00018507,2]
[350191803,1737679854130,-500.0,0.00018507,2]
[350191804,1737679854139,-500.0,0.00018507,2]
[350191805,1737679854148,-500.0,0.00018507,2]
[350191806,1737679854157,-500.0,0.00018507,2]
[350191807,1737679854166,-500.0,0.00018507,2]
[350191808,1737679854175,-500.0,0.00018507,2]
[350191809,1737679854184,-500.0,0.00018507,2]
[350191810,1737679854203,-500.0,0.00018507,2]
[350191811,1737679854224,-500.0,0.00018507,2]
[350191812,1737679854238,-119.43683894,0.00018507,2]
[350191813,1737679854252,-380.56316106,0.00018507,2]
[350191814,1737679854262,-500.0,0.00018507,2]
[350191815,1737679854271,-500.0,0.00018507,2]
[350191816,1737679854280,-500.0,0.00018507,2]
[350191817,1737679854288,-500.0,0.00018507,2]
[350191818,1737679854298,-466.66930555,0.00018507,2]
[350191819,1737679854326,-268.555066,0.00016982,2]
[350191820,1737679854337,-276.59,0.00017804,2]
[350191821,1737679854346,-33.33069445,0.00018507,2]
[350191822,1737679854356,-439.44113955,0.00018507,2]
[350191823,1737679854367,-60.55886045,0.00018507,2]
[350191824,1737679854376,-618.84642431,0.00018507,2]
[350191825,1737679854388,-94.15357569,0.00018507,2]
[350191826,1737679854398,-228.73802431,0.00018507,2]
[350191827,1737679854420,-271.26197569,0.00018507,2]
[350191828,1737679854430,-54.64802431,0.00018507,2]
[350191829,1737679854442,-445.35197569,0.00018507,2]
[350191830,1737679854452,-54.64802431,0.00018507,2]
[350191831,1737679854463,-445.35197569,0.00018507,2]
[350191832,1737679854472,-500.0,0.00018507,2]
[350191833,1737679854482,-500.0,0.00018507,2]
[350191834,1737679854494,-500.0,0.00018507,2]
[350191835,1737679854504,-500.0,0.00018507,2]
[350191836,1737679854515,-500.0,0.00018507,2]
[350191837,1737679854526,-500.0,0.00018507,2]
[350191838,1737679854536,-500.0,0.00018507,2]
[350191839,1737679854545,-500.0,0.00018507,2]
[350191840,1737679854556,-500.0,0.00018507,2]
[350191841,1737679854565,-500.0,0.00018507,2]
[350191842,1737679854575,-500.0,0.00018507,2]
[350191843,1737679854584,-500.0,0.00018507,2]
[350191844,1737679854595,-3000.0,0.00018507,2]
[350191845,1737679854604,-500.0,0.00018507,2]
[350191846,1737679854614,-500.0,0.00018507,2]
[350191847,1737679854623,-500.0,0.00018507,2]
[350191848,1737679854632,-500.0,0.00018507,2]
[350191849,1737679854642,-500.0,0.00018507,2]
[350191850,1737679854652,-500.0,0.00018507,2]
[350191851,1737679854661,-500.0,0.00018507,2]
[350191852,1737679854671,-500.0,0.00018507,2]
[350191853,1737679854680,-500.0,0.00018507,2]
[350191854,1737679854690,-500.0,0.00018507,2]
[350191855,1737679854702,-500.0,0.00018507,2]
[350191856,1737679854711,-500.0,0.00018507,2]
[350191857,1737679854720,-500.0,0.00018507,2]
[350191858,1737679854730,-500.0,0.00018507,2]
[350191859,1737679854739,-500.0,0.00018507,2]
[350191860,1737679854750,-500.0,0.00018507,2]
[350191861,1737679854759,-500.0,0.00018507,2]
[350191862,1737679854768,-500.0,0.00018507,2]
[350191863,1737679854779,-500.0,0.00018507,2]
[350191864,1737679854788,-500.0,0.00018507,2]
[350191865,1737679854798,-500.0,0.00018507,2]
[350191866,1737679854807,-500.0,0.00018507,2]
[350191867,1737679854816,-500.0,0.00018507,2]
[350191868,1737679854826,-500.0,0.00018507,2]
[350191869,1737679854835,-500.0,0.00018507,2]
[350191870,1737679854846,-500.0,0.00018507,2]
[350191871,1737679854855,-500.0,0.00018507,2]
[350191872,1737679854865,-500.0,0.00018507,2]
[350191873,1737679854874,-500.0,0.00018507,2]
[350191874,1737679854884,-500.0,0.00018507,2]
[350191875,1737679854894,-500.0,0.00018507,2]
[350191876,1737679854903,-500.0,0.00018507,2]
[350191877,1737679854912,-500.0,0.00018507,2]
[350191878,1737679854921,-500.0,0.00018507,2]
[350191879,1737679854930,-500.0,0.00018507,2]
[350191880,1737679854939,-500.0,0.00018507,2]
[350191881,1737679854948,-500.0,0.00018507,2]
[350191882,1737679854957,-500.0,0.00018507,2]
[350191883,1737679854966,-500.0,0.00018507,2]
[350191884,1737679854975,-500.0,0.00018507,2]
[350191885,1737679854984,-500.0,0.00018507,2]
[350191886,1737679854994,-500.0,0.00018507,2]
[350191887,1737679855006,-500.0,0.00018507,2]
[350191888,1737679855020,-500.0,0.00018507,2]
[350191889,1737679855034,-500.0,0.00018507,2]
[350191890,1737679855043,-500.0,0.00018507,2]
[350191891,1737679855052,-500.0,0.00018507,2]
[350191892,1737679855061,-500.0,0.00018507,2]
[350191893,1737679855070,-500.0,0.00018507,2]
[350191894,1737679855079,-500.0,0.00018507,2]
[350191895,1737679855091,-500.0,0.00018507,2]
[350191896,1737679855101,-500.0,0.00018507,2]
[350191897,1737679855110,-500.0,0.00018507,2]
[350191898,1737679855245,-500.0,0.00018507,2]
[350191899,1737679855255,-500.0,0.00018507,2]
[350191900,1737679855264,-500.0,0.00018507,2]
[350191901,1737679855274,-500.0,0.00018507,2]
[350191902,1737679855283,-150.0,0.00018511,2]
[350191903,1737679855292,-150.0,0.00018515,2]
[350191904,1737679855301,-150.0,0.00018523,2]
[350191905,1737679855311,-150.0,0.00018525,2]
[350191906,1737679855320,-150.0,0.00018525,2]
[350191907,1737679855330,-150.0,0.00018525,2]
[350191908,1737679855342,-150.0,0.00018528,2]
[350191909,1737679855352,-571.0,0.00018538,2]
[350191910,1737679855361,-1000.0,0.00018539,2]
[350191911,1737679855371,-150.0,0.00018539,2]
[350191912,1737679855380,-150.0,0.00018542,2]
[350191913,1737679855390,-150.0,0.00018545,2]
[350191914,1737679855399,-150.0,0.00018547,2]
[350191915,1737679855409,-150.0,0.00018549,2]
[350191916,1737679855419,-150.0,0.0001855,2]
[350191917,1737679855428,-150.0,0.00018551,2]
[350191918,1737679855438,-150.0,0.00018551,2]
[350191919,1737679855447,-1000.0,0.00018552,2]
[350191920,1737679855457,-150.0,0.00018552,2]
[350191921,1737679855466,-150.0,0.00018558,2]
[350191922,1737679855476,-150.0,0.0001856,2]
[350191923,1737679855486,-150.0,0.0001856,2]
[350191924,1737679855495,-2332.76896729,0.00018561,2]
[350191925,1737679855648,-556.06319564,0.00018561,2]
[350191926,1737679855658,-150.0,0.00018562,2]
[350191927,1737679855667,-197.13148914,0.00018562,2]
[350191928,1737679855676,-150.0,0.00018568,2]
[350191929,1737679855686,-150.0,0.00018574,2]
[350191930,1737679855700,-49.9706148,0.0001858,2]
[350191931,1737679855711,-100.0293852,0.0001858,2]